bitfinex/quotes_ETHUSD_20250406
["timestamp","ask_amount","ask_price","bid_price","bid_amount"]
[1743975782835,0.06273016,1593.3,1593.1,7.40891557]
[1743975783237,0.06273016,1593.3,1593.1,7.40890557]
[1743975784060,0.06273016,1593.3,1593.2,6.27667]
[1743975784239,0.06273016,1593.4,1593.2,13.92172456]
[1743975784564,0.06273016,1593.4,1593.2,7.64505456]
[1743975785661,0.06273016,1593.4,1593.2,13.92157456]
[1743975785843,0.06273016,1593.4,1593.2,7.64505456]
[1743975786454,0.06273016,1593.4,1593.2,6.2765]
[1743975787781,6.33862016,1593.4,1593.1,12.55388]
[1743975787964,0.06273016,1593.4,1593.2,6.27666]
[1743975788164,0.06273016,1593.4,1593.2,6.27664]
[1743975788543,0.06273016,1593.4,1593.1,12.5538]
[1743975788746,0.06273016,1593.4,1593.1,13.80918]
[1743975788986,12.61502016,1593.4,1593.0,12.55467]
[1743975789166,6.27651,1593.3,1592.8,3.7549]
[1743975789370,6.27651,1593.3,1593.0,6.27733]
[1743975789768,6.33924016,1593.3,1593.0,6.27733]
[1743975790157,6.27592,1593.4,1593.1,6.27689]
[1743975790358,6.33865016,1593.4,1593.1,13.809264]
[1743975790684,6.33872016,1593.4,1593.1,7.532314]
[1743975790879,12.61480016,1593.4,1593.1,6.27689]
[1743975791081,6.27566,1593.5,1593.1,6.27689]
[1743975791380,0.06273016,1593.4,1593.2,7.09255]
[1743975791550,0.06273016,1593.4,1593.2,7.09243]
[1743975791745,0.06273016,1593.4,1593.3,6.27628]
[1743975791950,0.06273016,1593.5,1593.3,6.27616]
[1743975792357,6.33824016,1593.5,1593.2,6.27659]
[1743975792585,12.61390016,1593.5,1593.2,6.27656]
[1743975792790,12.55117,1593.5,1593.2,6.27656]
[1743975792986,0.06273016,1593.4,1593.2,6.27656]
[1743975793175,0.06273016,1593.4,1593.2,6.27653]
[1743975794475,0.06273016,1593.4,1593.2,6.27655]
[1743975794676,0.06273016,1593.4,1593.2,6.27654]
[1743975794992,6.33870016,1593.4,1593.1,6.27696]
[1743975795286,0.06273016,1593.4,1593.2,6.27655]
[1743975795790,0.06273016,1593.4,1593.1,0.709286]
[1743975795992,0.06273016,1593.4,1593.2,6.27651]
[1743975796177,6.33838016,1593.5,1593.2,6.27651]
[1743975796696,12.61407016,1593.5,1593.2,6.27651]
[1743975796878,12.55134,1593.5,1593.2,6.27651]
[1743975797078,0.06273016,1593.4,1593.2,6.27651]
[1743975797487,0.06273016,1593.4,1593.2,6.904161]
[1743975799697,0.06273016,1593.4,1593.2,0.627651]
[1743975799865,6.33864016,1593.4,1593.2,0.627651]
[1743975801184,6.33864016,1593.4,1593.1,6.27696]
[1743975803989,6.33864016,1593.4,1593.1,6.27694]
[1743975804593,6.33864016,1593.4,1593.0,13.37063]
[1743975805296,12.61468016,1593.4,1593.0,13.37063]
[1743975805604,6.27591,1593.4,1593.1,6.27702]
[1743975805902,6.33864016,1593.4,1593.1,7.614045]
[1743975806682,6.33864016,1593.4,1593.0,13.37055]
[1743975806683,6.27643,1593.3,1593.0,13.37055]
[1743975806996,6.27591,1593.4,1593.1,6.27695]
[1743975807200,0.06273016,1593.3,1593.1,6.27695]
[1743975807400,0.06273016,1593.3,1593.1,6.27691]
[1743975807600,0.06273016,1593.3,1593.0,13.3707]
[1743975807806,0.06273016,1593.3,1593.0,15.11057093]
[1743975808172,0.06273016,1593.3,1593.1,6.27686]
[1743975808475,0.06273016,1593.3,1593.0,15.11046093]
[1743975808699,0.06273016,1593.3,1593.1,6.27705]
[1743975808896,0.7734,1593.9,1593.3,6.27599]
[1743975809100,0.7734,1593.9,1593.4,6.27586]
[1743975809101,6.27484,1593.7,1593.4,6.27586]
[1743975809301,0.06273016,1593.6,1593.4,6.27586]
[1743975809803,14.03984,1593.7,1593.4,12.55163]
[1743975810006,14.03984,1593.7,1593.4,13.33123]
[1743975810302,20.31285,1593.8,1593.4,13.33123]
[1743975810499,6.27437,1593.8,1593.5,6.27548]
[1743975810681,6.33627016,1594.0,1593.6,6.27493]
[1743975811103,6.27393,1593.9,1593.6,6.27493]
[1743975811310,12.54807,1593.9,1593.5,6.27542]
[1743975811510,6.27393,1593.9,1593.5,6.27531]
[1743975811712,6.33666016,1593.9,1593.6,6.27509]
[1743975812399,6.33666016,1593.9,1593.5,7.12038929]
[1743975812719,7.10819016,1593.8,1593.5,7.12038929]
[1743975812917,3.0,1594.0,1593.5,0.84507929]
[1743975813091,3.0,1594.0,1593.6,6.27495]
[1743975813092,15.61022016,1594.0,1593.6,6.27495]
[1743975813292,9.27366,1594.0,1593.6,12.54992]
[1743975813590,9.33639016,1594.0,1593.7,6.2747]
[1743975814218,15.61012016,1594.0,1593.6,12.54992]
[1743975814422,15.54739,1594.0,1593.6,14.20771293]
[1743975814633,12.54739,1594.0,1593.6,14.20771293]
[1743975814927,0.06273016,1593.9,1593.6,14.20768293]
[1743975815136,6.33667016,1593.9,1593.6,7.93273293]
[1743975815429,12.61087016,1593.9,1593.6,1.65779293]
[1743975815626,6.27394,1593.9,1593.5,16.57886931]
[1743975815815,0.06273016,1593.8,1593.6,6.27506]
[1743975816889,6.33667016,1593.9,1593.6,6.27506]
[1743975817516,6.27583,1593.5,1593.1,7.1057]
[1743975817689,14.84733016,1593.4,1593.0,8.01729093]
[1743975817888,14.09702016,1593.3,1593.0,8.01729093]
[1743975818118,0.06273016,1593.2,1593.0,8.01729093]
[1743975818625,14.03429,1593.3,1593.0,8.01729093]
[1743975818831,7.758,1593.3,1593.0,14.29458093]
[1743975819018,7.82073016,1593.3,1593.0,14.29458093]
[1743975819219,7.82073016,1593.3,1593.1,6.27703]
[1743975820330,7.82073016,1593.3,1593.0,14.29446093]
[1743975820519,7.82073016,1593.3,1593.0,8.01716093]
[1743975821226,7.82073016,1593.3,1593.0,14.29448093]
[1743975821531,7.82073016,1593.3,1593.0,8.01716093]
[1743975822029,7.82073016,1593.3,1593.0,14.29450093]
[1743975822726,7.82073016,1593.3,1593.1,12.5539]
[1743975822930,0.06273016,1593.4,1593.2,6.27667]
[1743975823224,12.57768401,1593.6,1593.2,6.27667]
[1743975823225,14.09327016,1593.5,1593.2,6.27667]
[1743975823428,7.755,1593.5,1593.2,6.27651]
[1743975823640,7.81773016,1593.5,1593.2,12.55304]
[1743975823842,0.06273016,1593.5,1593.2,12.55304]
[1743975824027,7.755,1593.4,1593.2,12.55304]
[1743975824229,7.755,1593.4,1593.2,13.808344]
[1743975825543,7.81573016,1593.5,1593.3,6.27628]
[1743975825747,7.81573016,1593.5,1593.3,12.55242]
[1743975826424,0.06273016,1593.5,1593.3,12.55242]
[1743975826630,7.753,1593.4,1593.3,12.55242]
[1743975826847,0.06273016,1593.5,1593.4,7.09188]
[1743975827065,0.06273016,1594.3,1593.9,6.27377]
[1743975827233,0.62422758,1594.3,1594.0,6.27339]
[1743975827419,3.62422758,1594.3,1594.0,6.27339]
[1743975827623,0.62422758,1594.3,1594.0,6.27339]
[1743975827952,0.06273016,1594.3,1594.1,6.27295]
[1743975828521,0.06273016,1594.3,1594.0,6.27339]
[1743975828721,0.06273016,1594.3,1594.0,12.54673]
[1743975829421,0.06273016,1594.3,1593.8,6.27428]
[1743975829648,0.06273016,1594.3,1594.1,6.27313]
[1743975829957,0.06273016,1594.3,1594.1,6.27296]
[1743975830163,0.06273016,1594.3,1594.2,6.27273]
[1743975830331,0.06273016,1594.3,1594.1,12.54596]
[1743975830658,0.06273016,1594.3,1594.1,6.27293]
[1743975833026,5.61497417,1594.4,1594.1,6.27293]
[1743975833352,5.61497417,1594.4,1594.1,6.27277]
[1743975833554,5.61497417,1594.4,1594.1,12.54554]
[1743975834859,0.11948296,1594.3,1594.1,12.54554]
[1743975835153,5.61497417,1594.4,1594.1,12.54554]
[1743975835355,5.61497417,1594.4,1594.2,6.27268]
[1743975835658,0.12414624,1594.3,1594.2,6.27268]
[1743975835836,5.61497417,1594.4,1594.2,6.27268]
[1743975836037,0.12419429,1594.3,1594.2,6.27268]
[1743975836242,5.61497417,1594.4,1594.1,6.27277]
[1743975836557,0.12419429,1594.3,1594.1,6.27277]
[1743975836858,5.61497417,1594.4,1594.1,6.2731]
[1743975837151,0.12419429,1594.3,1594.1,6.2731]
[1743975837459,5.61497417,1594.4,1594.1,12.5461]
[1743975837654,0.12419429,1594.3,1594.1,12.5461]
[1743975837848,5.61497417,1594.4,1594.1,12.5461]
[1743975838264,0.12419429,1594.3,1594.1,12.5461]
[1743975838430,5.61497417,1594.4,1594.1,6.273]
[1743975838628,0.12419429,1594.3,1594.1,6.273]
[1743975838833,5.61497417,1594.4,1594.1,6.273]
[1743975839046,0.12419429,1594.3,1594.1,12.546]
[1743975839363,5.61497417,1594.4,1594.1,12.546]
[1743975839857,0.12419429,1594.3,1594.1,12.546]
[1743975840058,5.61497417,1594.4,1594.1,12.546]
[1743975840365,0.12419429,1594.3,1594.1,12.546]
[1743975840567,0.12419429,1594.3,1594.2,6.27273]
[1743975840755,5.61497417,1594.4,1594.2,6.27273]
[1743975840955,0.12419429,1594.3,1594.2,6.27273]
[1743975841264,0.11894429,1594.3,1594.2,6.27273]
[1743975841479,5.61497417,1594.4,1594.2,6.27273]
[1743975841767,0.11894429,1594.3,1594.2,6.27273]
[1743975842265,0.06273016,1594.4,1594.2,6.27273]
[1743975842569,0.11894429,1594.3,1594.2,6.27273]
[1743975842864,0.06273016,1594.4,1594.1,6.27299]
[1743975843043,0.11894429,1594.3,1594.1,12.54599]
[1743975843243,0.06273016,1594.4,1594.1,12.54599]
[1743975843444,0.11894429,1594.3,1594.1,12.54599]
[1743975843867,0.06273016,1594.4,1594.1,12.54599]
[1743975844033,0.11894429,1594.3,1594.1,12.54599]
[1743975844237,0.06273016,1594.4,1594.1,12.54599]
[1743975844534,0.11894429,1594.3,1594.1,12.54599]
[1743975844873,0.06273016,1594.4,1594.1,12.54599]
[1743975845371,0.11894429,1594.3,1594.1,12.54599]
[1743975845670,0.06273016,1594.4,1594.1,12.54599]
[1743975845846,0.11894429,1594.3,1594.1,12.54599]
[1743975846047,0.06273016,1594.4,1594.1,12.54599]
[1743975846242,0.11894429,1594.3,1594.1,12.54599]
[1743975846660,0.06273016,1594.4,1594.1,12.54599]
[1743975846869,0.11894429,1594.3,1594.1,12.54599]
[1743975847071,0.06273016,1594.4,1594.1,12.54599]
[1743975848071,0.06273016,1594.4,1594.1,12.54601]
[1743975848577,0.06273016,1594.4,1594.1,6.27299]
[1743975848794,0.06273016,1594.4,1594.2,6.27273]
[1743975851982,0.06273016,1594.4,1594.2,12.54535]
[1743975852183,0.06273016,1594.4,1594.2,13.799922]
[1743975852399,0.06273016,1594.4,1594.2,7.527192]
[1743975852703,0.06273016,1594.4,1594.2,6.27262]
[1743975853278,0.06273016,1594.4,1594.2,12.54523]
[1743975854310,0.06273016,1594.4,1594.3,6.27234]
[1743975855513,0.06273016,1594.4,1594.2,6.2726]
[1743975855680,0.06273016,1594.4,1594.2,12.54518]
[1743975857108,0.06273016,1594.4,1594.2,13.70820786]
[1743975857967,0.06273016,1594.4,1594.1,6.27292]
[1743975858389,6.33483016,1594.4,1594.0,6.27335]
[1743975858568,12.60697016,1594.4,1594.0,12.54672]
[1743975858771,6.2721,1594.4,1594.0,6.27335]
[1743975858968,6.33483016,1594.4,1594.1,6.27312]
[1743975859209,6.33481016,1594.4,1594.1,6.27312]
[1743975859700,6.33481016,1594.4,1594.1,12.54607]
[1743975859918,6.33481016,1594.4,1594.1,6.27295]
[1743975860811,12.60700016,1594.4,1594.1,6.27295]
[1743975861005,6.27239,1594.3,1594.0,6.978515]
[1743975861222,0.06273016,1594.2,1594.0,6.27343]
[1743975861526,0.06273016,1594.2,1594.0,7.605909]
[1743975862026,0.06273016,1594.2,1594.0,7.605839]
[1743975862213,0.06273016,1594.3,1594.0,7.605839]
[1743975862413,0.06273016,1594.3,1594.0,13.879189]
[1743975862593,6.33472016,1594.4,1594.1,12.5458]
[1743975862792,6.33472016,1594.4,1594.1,6.27281]
[1743975863110,6.33472016,1594.4,1594.1,7.6609479]
[1743975863320,0.06273016,1594.4,1594.1,13.9339279]
[1743975863503,0.06273016,1594.4,1594.1,12.5461]
[1743975863713,0.06273016,1594.4,1594.2,13.31058]
[1743975863920,0.06273016,1594.4,1594.3,6.27234]
[1743975864213,9.33394016,1594.6,1594.3,6.27234]
[1743975864618,15.60534016,1594.6,1594.3,6.27234]
[1743975864817,9.27121,1594.6,1594.3,12.54456]
[1743975865021,9.33394016,1594.6,1594.3,7.603206]
[1743975866315,9.33394016,1594.6,1594.3,12.54443]
[1743975866619,3.06273016,1594.6,1594.4,12.5434]
[1743975867621,3.06273016,1594.6,1594.5,6.27155]
[1743975867823,3.0,1594.6,1594.5,6.27155]
[1743975868214,7.78173016,1594.7,1594.6,6.27116]
[1743975868718,7.78173016,1594.7,1594.5,12.5431]
[1743975869223,7.78173016,1594.7,1594.5,6.27155]
[1743975869438,7.78173016,1594.7,1594.5,12.5431]
[1743975869640,7.78173016,1594.7,1594.1,6.27286]
[1743975869641,15.60669401,1594.6,1594.1,6.27286]
[1743975869958,7.11734016,1594.5,1594.1,12.54586]
[1743975870109,13.38909016,1594.5,1594.1,12.54586]
[1743975870311,13.38909016,1594.5,1594.1,6.27286]
[1743975870312,13.3264,1594.5,1594.1,6.27286]
[1743975870512,7.05461,1594.5,1594.1,6.27286]
[1743975870812,7.11734016,1594.5,1594.2,6.27267]
[1743975871266,0.84573016,1594.5,1594.2,6.27257]
[1743975871654,0.84573016,1594.5,1594.3,6.27216]
[1743975872353,0.84573016,1594.5,1594.2,6.27269]
[1743975872514,0.84573016,1594.5,1594.2,12.54525]
[1743975872709,3.794,1594.7,1594.5,6.27139]
[1743975872943,0.85673016,1594.7,1594.6,6.27116]
[1743975873253,0.06273016,1594.8,1594.7,6.27051]
[1743975873463,0.06273016,1594.8,1594.7,12.54102]
[1743975873641,7.714,1595.0,1594.9,6.26998]
[1743975873959,6.34624401,1595.2,1594.9,12.53996]
[1743975874127,3.0,1595.1,1594.9,12.53996]
[1743975874329,6.34624401,1595.2,1594.9,12.53996]
[1743975874648,6.82022695,1595.2,1594.9,6.26998]
[1743975874854,3.0,1595.1,1594.8,12.54062]
[1743975875057,3.0,1595.1,1594.9,6.2699]
[1743975875637,0.06273016,1595.0,1594.9,6.2699]
[1743975876325,0.06273016,1595.1,1594.9,6.2699]
[1743975876551,0.06273016,1595.1,1594.8,6.27023]
[1743975876862,6.33197016,1595.1,1594.8,6.27023]
[1743975877067,13.86917858,1595.1,1594.7,6.27071]
[1743975877226,11.82183401,1595.0,1594.6,7.08776]
[1743975877422,0.06273016,1594.9,1594.6,7.08776]
[1743975877662,0.06273016,1594.9,1594.7,6.27045]
[1743975877967,0.06273016,1594.9,1594.8,6.27037]
[1743975878129,3.0,1595.1,1594.8,12.54059]
[1743975878323,3.06273016,1595.1,1594.8,12.54059]
[1743975878528,3.06273016,1595.1,1594.9,6.26995]
[1743975878836,3.06273016,1595.1,1594.8,6.27022]
[1743975879029,9.33206016,1595.1,1594.7,6.27071]
[1743975879230,15.60146016,1595.1,1594.7,6.27071]
[1743975879445,15.53876,1595.1,1594.7,6.27071]
[1743975879628,11.82185401,1595.0,1594.7,6.27071]
[1743975879969,14.81736016,1594.9,1594.5,6.27143]
[1743975880171,0.06273016,1594.8,1594.5,6.27143]
[1743975880344,8.61497417,1594.8,1594.5,6.27143]
[1743975880882,6.27197,1594.4,1594.0,6.27351]
[1743975881171,14.79631016,1594.3,1593.9,6.27372]
[1743975881473,9.27314,1594.1,1593.7,6.27463]
[1743975881676,0.81573016,1594.0,1593.7,6.27463]
[1743975881863,13.36313016,1594.0,1593.6,6.27502]
[1743975882176,20.31806016,1593.9,1593.5,6.27531]
[1743975882377,0.06273016,1593.8,1593.5,12.55064]
[1743975882778,0.06273016,1593.8,1593.6,6.27485]
[1743975882984,0.06273016,1593.8,1593.5,6.27548]
[1743975883162,0.7884,1593.7,1593.4,6.27588]
[1743975883368,0.06273016,1593.6,1593.5,6.27549]
[1743975883538,3.06273016,1593.6,1593.2,6.27665]
[1743975883736,7.706,1593.5,1593.2,6.27665]
[1743975883971,0.06273016,1593.4,1593.2,6.27665]
[1743975884474,0.06273016,1593.4,1593.1,6.27704]
[1743975884677,9.33883016,1593.4,1593.0,6.2774]
[1743975884884,10.12723016,1593.4,1593.0,7.39219102]
[1743975885580,3.85113016,1593.4,1593.0,1.11479102]
[1743975885745,3.85113016,1593.4,1593.1,6.2769]
[1743975885946,3.85113016,1593.4,1593.0,12.55465]
[1743975886175,10.12703016,1593.4,1593.0,12.55451]
[1743975886382,3.85113016,1593.4,1593.1,6.27701]
[1743975886683,10.12714016,1593.4,1593.0,12.55449]
[1743975886868,10.12714016,1593.4,1593.0,13.893049]
[1743975887074,16.40338016,1593.4,1593.0,7.615799]
[1743975887246,16.34065,1593.4,1593.0,6.27724]
[1743975887444,0.06273016,1593.3,1593.0,12.55452]
[1743975887682,0.06273016,1593.3,1593.1,6.27703]
[1743975887887,0.06273016,1593.3,1593.0,6.27724]
[1743975888057,0.06273016,1593.3,1593.0,12.55451]
[1743975888573,0.06273016,1593.3,1593.0,6.27724]
[1743975889176,0.06273016,1593.3,1593.0,1.338618]
[1743975889385,11.4934,1593.6,1593.3,6.27602]
[1743975889593,0.06273016,1593.5,1593.3,6.27602]
[1743975890079,0.06273016,1593.5,1593.2,6.27653]
[1743975890287,0.06273016,1593.5,1593.2,12.55301]
[1743975890451,6.33830016,1593.5,1593.1,6.27688]
[1743975890652,9.27603,1593.4,1593.0,6.27734]
[1743975890867,0.06273016,1593.3,1593.0,6.27734]
[1743975891069,0.06273016,1593.3,1593.1,6.27687]
[1743975891383,0.06273016,1593.4,1593.2,6.27667]
[1743975891549,0.06273016,1593.4,1593.2,12.55334]
[1743975892287,0.06273016,1593.5,1593.2,12.55334]
[1743975893689,6.33837016,1593.5,1593.1,6.277]
[1743975894090,6.33837016,1593.5,1593.1,12.55386]
[1743975894273,6.33837016,1593.5,1593.1,13.809246]
[1743975894478,6.33837016,1593.5,1593.2,6.27664]
[1743975894979,0.06273016,1593.5,1593.3,0.8311]
[1743975895180,17.87818016,1593.6,1593.2,6.2765]
[1743975895359,12.55045,1593.6,1593.2,6.2765]
[1743975895558,14.875695,1593.6,1593.2,6.2765]
[1743975895761,12.55045,1593.6,1593.2,6.2765]
[1743975896575,12.55045,1593.6,1593.1,7.04911]
[1743975896576,0.7884,1593.8,1593.6,6.27508]
[1743975896887,6.31564401,1594.0,1593.6,6.27508]
[1743975897995,6.31564401,1594.0,1593.6,12.55001]
[1743975899093,6.31564401,1594.0,1593.7,6.27469]
[1743975899799,6.31564401,1594.0,1593.6,12.54986]
[1743975900001,6.31564401,1594.0,1593.7,6.27466]
[1743975901316,3.0,1594.1,1593.9,6.27391]
[1743975901501,6.32274401,1594.2,1594.0,6.27352]
[1743975901671,6.32274401,1594.2,1593.9,12.54765]
[1743975901672,13.25024401,1594.2,1593.9,12.54765]
[1743975901874,13.25024401,1594.2,1593.9,6.27379]
[1743975902356,13.25024401,1594.2,1593.9,12.54754]
[1743975902901,10.697,1594.2,1593.9,6.27364]
[1743975903059,10.697,1594.2,1594.0,6.27338]
[1743975903681,10.697,1594.2,1593.9,6.27364]
[1743975904463,23.24277,1594.2,1593.8,6.27425]
[1743975904898,5.55224401,1594.1,1593.8,6.27425]
[1743975905127,7.695,1594.1,1593.8,6.27414]
[1743975906218,7.695,1594.1,1593.7,6.27461]
[1743975906219,0.7898,1594.0,1593.7,6.27461]
[1743975906797,3.7898,1594.0,1593.7,6.27461]
[1743975907002,10.06334,1594.0,1593.6,12.55008]
[1743975907603,3.7898,1594.0,1593.7,6.2747]
[1743975910628,15.61559401,1594.0,1593.6,12.55001]
[1743975910939,9.34204401,1594.0,1593.6,6.27497]
[1743975911144,15.61561401,1594.0,1593.6,12.54994]
[1743975911440,9.34204401,1594.0,1593.7,6.27469]
[1743975913039,3.7898,1594.0,1593.7,12.54926]
[1743975913243,11.4798,1594.0,1593.7,6.27457]
[1743975914901,11.4798,1594.0,1593.7,12.54915]
[1743975915124,11.4798,1594.0,1593.7,6.27457]
[1743975915332,11.4798,1594.0,1593.7,12.54913]
[1743975915534,11.4798,1594.0,1593.8,6.2743]
[1743975916742,17.75337,1594.0,1593.7,6.27456]
[1743975916913,17.75337,1594.0,1593.6,6.27493]
[1743975917104,17.75337,1594.0,1593.6,6.902423]
[1743975917639,17.75337,1594.0,1593.6,13.177353]
[1743975917845,11.4798,1594.0,1593.7,6.27468]
[1743975920449,17.75336,1594.0,1593.5,6.27548]
[1743975920616,6.27428,1593.9,1593.5,12.55096]
[1743975920812,6.27428,1593.9,1593.6,6.27503]
[1743975921018,29.57933401,1594.0,1593.6,6.27497]
[1743975922648,3.0,1593.5,1593.2,7.03374]
[1743975922861,3.7975,1593.7,1593.3,6.27611]
[1743975922862,10.07237,1593.7,1593.3,6.27611]
[1743975923153,10.07237,1593.7,1593.3,13.255551]
[1743975923327,3.0,1593.5,1593.3,13.255551]
[1743975923949,7.683,1593.6,1593.3,13.255551]
[1743975924344,7.683,1593.6,1593.3,6.979431]
[1743975924529,7.683,1593.6,1593.3,13.255581]
[1743975924854,7.633,1593.6,1593.3,6.979431]
[1743975925018,7.633,1593.6,1593.3,13.255591]
[1743975925219,7.633,1593.6,1593.3,6.979431]
[1743975925750,7.633,1593.6,1593.3,13.255551]
[1743975926158,7.633,1593.6,1593.3,13.255571]
[1743975926317,7.633,1593.6,1593.3,6.979431]
[1743975926815,7.633,1593.6,1593.3,13.255561]
[1743975927121,7.633,1593.6,1593.3,6.979431]
[1743975927461,7.633,1593.6,1593.3,13.255571]
[1743975927660,7.633,1593.6,1593.3,6.979431]
[1743975928024,7.633,1593.6,1593.3,6.27611]
[1743975928553,13.90811,1593.6,1593.3,6.27611]
[1743975928718,7.633,1593.6,1593.3,6.27611]
[1743975929153,13.34728,1593.7,1593.3,6.27611]
[1743975929358,7.679,1593.6,1593.3,6.27611]
[1743975929565,13.95413,1593.6,1593.3,7.607092]
[1743975929856,13.95413,1593.6,1593.2,13.31032]
[1743975930440,13.95413,1593.6,1593.3,6.27616]
[1743975930633,7.679,1593.6,1593.3,6.27616]
[1743975930827,7.679,1593.6,1593.3,6.27611]
[1743975931048,13.95413,1593.6,1593.3,6.27611]
[1743975931667,0.31735936,1593.5,1593.3,6.27611]
[1743975931977,0.31735936,1593.5,1593.2,13.31023]
[1743975932138,0.31735936,1593.5,1593.2,14.013598]
[1743975932342,0.31735936,1593.5,1593.0,7.0744]
[1743975932343,6.27591,1593.4,1593.0,7.0744]
[1743975932552,0.31399014,1593.3,1593.0,13.3518]
[1743975932762,7.08241,1593.4,1593.1,6.27703]
[1743975932927,0.31399014,1593.3,1593.1,6.27703]
[1743975933131,0.8065,1593.4,1593.1,6.27703]
[1743975933345,0.31399014,1593.3,1593.1,12.55395]
[1743975933546,0.8065,1593.4,1593.1,12.55395]
[1743975933829,0.31399014,1593.3,1593.1,12.55395]
[1743975934052,0.31399014,1593.3,1593.2,6.27667]
[1743975934528,9.27582,1593.5,1593.2,6.27667]
[1743975934731,0.31399014,1593.4,1593.2,6.27667]
[1743975936728,0.31399014,1593.4,1593.1,6.27692]
[1743975937674,6.58989014,1593.4,1593.1,6.27692]
[1743975938546,0.31399014,1593.4,1593.3,6.27628]
[1743975939234,19.28202016,1593.6,1593.3,6.27628]
[1743975939435,0.28543175,1593.4,1593.3,6.27628]
[1743975939952,19.28202016,1593.6,1593.3,6.27628]
[1743975940272,0.28543175,1593.5,1593.3,6.27628]
[1743975940640,0.28543175,1593.5,1593.3,7.10371]
[1743975940838,0.28543175,1593.5,1593.3,13.37986]
[1743975941061,0.28543175,1593.5,1593.4,6.27588]
[1743975941444,0.28543175,1593.5,1593.3,8.441696]
[1743975941771,0.28543175,1593.5,1593.3,14.717846]
[1743975943500,0.28543175,1593.5,1593.4,6.27588]
[1743975943794,3.0,1593.8,1593.5,6.27526]
[1743975943959,3.0,1593.8,1593.5,12.55053]
[1743975944159,6.27391,1593.9,1593.6,7.10263]
[1743975945697,3.0,1593.9,1593.4,7.08827]
[1743975946066,6.27448,1593.8,1593.4,13.36399]
[1743975946385,9.27395,1593.9,1593.5,12.55092]
[1743975946567,9.27395,1593.9,1593.5,12.5508]
[1743975946897,15.54808,1593.9,1593.5,7.61167]
[1743975947098,9.27395,1593.9,1593.5,13.88704]
[1743975947673,15.54805,1593.9,1593.5,13.88704]
[1743975947873,9.27395,1593.9,1593.6,6.27508]
[1743975948266,3.0,1593.9,1593.7,6.27465]
[1743975948462,3.0,1593.9,1593.6,6.27506]
[1743975948661,3.0,1593.9,1593.7,6.27465]
[1743975949689,3.0,1593.9,1593.6,12.54994]
[1743975950579,3.0,1593.9,1593.7,0.8135]
[1743975950781,3.0,1593.9,1593.7,7.08817]
[1743975950981,3.0,1594.0,1593.7,7.08817]
[1743975951894,3.0,1594.0,1593.7,6.27454]
[1743975952191,3.0,1594.0,1593.7,12.54912]
[1743975954007,3.0,1594.0,1593.7,6.27454]
[1743975954212,3.0,1594.0,1593.7,12.54911]
[1743975954372,3.0,1594.0,1593.8,6.27426]
[1743975954911,12.60255401,1594.3,1593.9,6.27384]
[1743975955114,0.7779,1594.3,1594.0,12.5469]
[1743975955319,7.66,1594.4,1594.1,7.06788]
[1743975955606,7.66,1594.4,1594.2,12.54529]
[1743975955909,7.66,1594.4,1594.3,6.27234]
[1743975957007,18.47079,1594.7,1594.3,12.54468]
[1743975957323,14.69979,1594.7,1594.3,12.54468]
[1743975957502,3.0,1594.6,1594.3,12.54468]
[1743975957700,3.0,1594.6,1594.3,13.799148]
[1743975957915,3.0,1594.6,1594.3,7.526808]
[1743975958122,0.772,1594.7,1594.4,12.54378]
[1743975958280,8.429,1594.7,1594.4,12.54378]
[1743975958612,3.0,1594.6,1594.4,7.05409]
[1743975958812,3.0,1594.6,1594.5,6.976959]
[1743975959314,3.0,1594.7,1594.5,13.248349]
[1743975959478,7.656,1594.8,1594.5,13.248349]
[1743975959681,14.73133,1594.9,1594.5,13.248349]
[1743975960081,3.0,1594.8,1594.6,12.54208]
[1743975960381,8.16505894,1595.1,1594.7,12.54136]
[1743975960382,14.69107,1595.1,1594.7,12.54136]
[1743975960609,14.69107,1595.1,1594.8,6.27024]
[1743975960791,3.0,1595.0,1594.8,6.27024]
[1743975961196,14.69107,1595.1,1594.8,6.27024]
[1743975961523,9.26965,1595.0,1594.7,7.09504]
[1743975961710,9.26965,1595.0,1594.1,24.76414132]
[1743975961711,12.54104,1594.8,1594.4,7.09623]
[1743975962223,6.27037,1594.8,1594.4,13.36801]
[1743975962817,3.0,1594.7,1594.3,6.27228]
[1743975962987,13.31061,1594.6,1594.2,7.09697]
[1743975963187,6.27167,1594.5,1594.1,6.979818]
[1743975963384,0.7678,1594.3,1593.8,0.8244]
[1743975963616,6.27353,1594.0,1593.6,13.37456]
[1743975963924,7.04133,1594.0,1593.6,7.09948]
[1743975964087,13.31508,1594.0,1593.6,7.09948]
[1743975964286,7.04133,1594.0,1593.7,0.709948]
[1743975966620,13.31511,1594.0,1593.7,0.709948]
[1743975966826,7.04133,1594.0,1593.6,7.09932]
[1743975967428,7.04133,1594.0,1593.6,6.27492]
[1743975967625,6.27404,1593.9,1593.5,12.55072]
[1743975968291,3.0,1593.9,1593.6,6.27504]
[1743975970401,3.0,1593.9,1593.6,7.530074]
[1743975970603,3.0,1593.9,1593.6,13.804984]
[1743975970824,0.2456085,1593.8,1593.6,13.804984]
[1743975972537,0.2456085,1593.8,1593.6,7.529944]
[1743975973137,1.4822614,1594.7,1593.7,0.818]
[1743975973438,12.59486401,1595.1,1594.6,6.27091]
[1743975973606,0.6894613,1595.0,1594.7,6.27061]
[1743975974705,6.9591113,1595.0,1594.7,6.27061]
[1743975977244,6.9591113,1595.0,1594.6,6.27091]
[1743975977733,6.9591113,1595.0,1594.7,6.27076]
[1743975979542,13.2289013,1595.0,1594.6,6.27091]
[1743975980463,6.26965,1595.0,1594.6,12.54189]
[1743975980767,0.20192497,1594.9,1594.6,12.54189]
[1743975982546,0.20192497,1594.9,1594.7,6.27074]
[1743975983370,0.20192497,1594.9,1594.6,6.27091]
[1743975984661,12.74230497,1594.9,1594.5,7.08943]
[1743975984866,6.27039,1594.8,1594.5,7.08943]